[Event "*** Titled Tuesday Blitz"]
[Site "Chess.com"]
[Date "2019.04.02"]
[Round "1"]
[White "Gabix_94"]
[Black "Phurba13"]
[Result "1-0"]
[WhiteElo "2571"]
[BlackElo "2234"]
[TimeControl "180+2"]
[EndTime "14:08:52 PDT"]
[Termination "Gabix_94 won by resignation"]

1. Nf3 {[%clk 0:02:59.6]} 1... d5 {[%clk 0:03:01.1]} 2. c4 {[%clk 0:02:58.5]}
2... e6 {[%clk 0:03:02.6]} 3. d4 {[%clk 0:02:57.7]} 3... Nf6 {[%clk 0:03:03.8]}
4. Nc3 {[%clk 0:02:58.3]} 4... Be7 {[%clk 0:03:05.1]} 5. Bf4 {[%clk 0:02:57.1]}
5... O-O {[%clk 0:03:06.1]} 6. e3 {[%clk 0:02:58.4]} 6... c6 {[%clk 0:03:07.4]}
7. Qc2 {[%clk 0:02:58.7]} 7... Nbd7 {[%clk 0:03:08.6]} 8. h3 {[%clk 0:02:59.2]}
8... dxc4 {[%clk 0:03:09.2]} 9. Bxc4 {[%clk 0:02:59.8]} 9... Nd5 {[%clk
0:03:10.5]} 10. Bh2 {[%clk 0:02:58.9]} 10... N7f6 {[%clk 0:03:10.1]} 11. O-O
{[%clk 0:02:58.8]} 11... Bd6 {[%clk 0:03:08.1]} 12. Ne5 {[%clk 0:02:58.9]} 12...
h6 {[%clk 0:03:03.8]} 13. Rad1 {[%clk 0:02:58.3]} 13... Qa5 {[%clk 0:03:01.5]}
14. Be2 {[%clk 0:02:53.8]} 14... Bb4 {[%clk 0:02:56.5]} 15. Rc1 {[%clk
0:02:50.2]} 15... Rd8 {[%clk 0:02:46.2]} 16. Rfd1 {[%clk 0:02:49.2]} 16... Bd7
{[%clk 0:02:46.1]} 17. Nc4 {[%clk 0:02:46.8]} 17... Qa6 {[%clk 0:02:38.4]} 18.
e4 {[%clk 0:02:46.3]} 18... Nxc3 {[%clk 0:02:38.2]} 19. bxc3 {[%clk 0:02:45.5]}
19... Bf8 {[%clk 0:02:38.8]} 20. e5 {[%clk 0:02:38.3]} 20... Nd5 {[%clk
0:02:38.1]} 21. Nd6 {[%clk 0:01:34.8]} 21... b5 {[%clk 0:02:20.4]} 22. c4 {[%clk
0:01:31.2]} 22... Nb4 {[%clk 0:02:14.6]} 23. Qb3 {[%clk 0:01:28.9]} 23... Qa4
{[%clk 0:02:04.6]} 24. Qxa4 {[%clk 0:01:25.6]} 24... bxa4 {[%clk 0:02:06.5]} 25.
a3 {[%clk 0:01:27]} 25... Na6 {[%clk 0:02:05.9]} 26. Rb1 {[%clk 0:01:25.4]}
26... Rab8 {[%clk 0:02:04.1]} 27. Bf3 {[%clk 0:01:19]} 27... Nc7 {[%clk
0:02:01]} 28. Bf4 {[%clk 0:01:17.8]} 28... Ne8 {[%clk 0:01:49.3]} 29. Kf1 {[%clk
0:01:07.2]} 29... g5 {[%clk 0:01:49.3]} 30. Bg3 {[%clk 0:01:07]} 30... Ng7
{[%clk 0:01:38.3]} 31. Be4 {[%clk 0:01:05.2]} 31... Nh5 {[%clk 0:01:25.1]} 32.
Bh2 {[%clk 0:01:04.7]} 32... Ng7 {[%clk 0:01:20.3]} 33. Ke2 {[%clk 0:01:05.5]}
33... Ne8 {[%clk 0:01:18.3]} 34. Kd3 {[%clk 0:01:04.1]} 34... Be7 {[%clk
0:01:19.1]} 35. Kc3 {[%clk 0:01:04.5]} 35... Kg7 {[%clk 0:01:17.3]} 36. g4
{[%clk 0:01:03.7]} 36... Kg8 {[%clk 0:01:13.5]} 37. f4 {[%clk 0:01:04.6]} 37...
Ng7 {[%clk 0:01:13.5]} 38. f5 {[%clk 0:01:04.8]} 38... Bxd6 {[%clk 0:01:12.1]}
39. fxe6 {[%clk 0:00:53.6]} 39... Nxe6 {[%clk 0:01:01.5]} 40. exd6 {[%clk
0:00:54.3]} 40... c5 {[%clk 0:00:58.2]} 41. d5 {[%clk 0:00:51.5]} 41... Nd4
{[%clk 0:00:59.5]} 42. Rxb8 {[%clk 0:00:48.6]} 42... Rxb8 {[%clk 0:01:00.1]} 43.
Rb1 {[%clk 0:00:44.7]} 43... Rxb1 {[%clk 0:01:00.7]} 44. Bxb1 {[%clk 0:00:46.6]}
44... Kf8 {[%clk 0:00:59.4]} 45. Bd3 {[%clk 0:00:44]} 45... Ke8 {[%clk
0:01:00.5]} 46. Bg1 {[%clk 0:00:44.4]} 46... Nf3 {[%clk 0:00:59.8]} 47. Bxc5
{[%clk 0:00:45.4]} 47... a6 {[%clk 0:00:55.1]} 48. Bf2 {[%clk 0:00:45.1]} 48...
a5 {[%clk 0:00:51.8]} 49. c5 {[%clk 0:00:46.2]} 49... Ne5 {[%clk 0:00:51]} 50.
Be4 {[%clk 0:00:46.7]} 50... Bc8 {[%clk 0:00:40.8]} 51. c6 {[%clk 0:00:47.6]}
51... f6 {[%clk 0:00:41.9]} 52. d7+ {[%clk 0:00:47.6]} 52... Bxd7 {[%clk
0:00:42.7]} 53. cxd7+ {[%clk 0:00:49.5]} 53... Kxd7 {[%clk 0:00:44.6]} 54. Bc5
{[%clk 0:00:50]} 54... Nf7 {[%clk 0:00:44.1]} 55. Bf5+ {[%clk 0:00:51]} 55...
Kc7 {[%clk 0:00:44.8]} 56. Kc4 {[%clk 0:00:51.9]} 56... Ne5+ {[%clk 0:00:45.6]}
57. Kb5 {[%clk 0:00:53.2]} 57... Nf3 {[%clk 0:00:47]} 58. d6+ {[%clk 0:00:54.4]}
58... Kd8 {[%clk 0:00:48.3]} 59. Bb6+ {[%clk 0:00:55.5]} 59... Ke8 {[%clk
0:00:47]} 60. d7+ {[%clk 0:00:57.4]} 60... Kf7 {[%clk 0:00:48]} 61. d8=Q {[%clk
0:00:58.5]} 1-0

[Event "*** Titled Tuesday Blitz"]
[Site "Chess.com"]
[Date "2019.04.02"]
[Round "1"]
[White "A-Fier"]
[Black "TregubovP"]
[Result "0-1"]
[WhiteElo "2770"]
[BlackElo "2473"]
[TimeControl "180+2"]
[EndTime "14:08:54 PDT"]
[Termination "TregubovP won by resignation"]

1. d4 {[%clk 0:02:59.9]} 1... Nf6 {[%clk 0:02:59.8]} 2. Bg5 {[%clk 0:03:00.3]}
2... e6 {[%clk 0:02:59.8]} 3. e4 {[%clk 0:03:00.9]} 3... h6 {[%clk 0:03:00.9]}
4. Bxf6 {[%clk 0:03:02]} 4... Qxf6 {[%clk 0:03:02.5]} 5. c3 {[%clk 0:03:03.4]}
5... d6 {[%clk 0:03:00.7]} 6. Bd3 {[%clk 0:03:03.9]} 6... g6 {[%clk 0:03:01.4]}
7. Ne2 {[%clk 0:03:05.4]} 7... Bg7 {[%clk 0:03:02.9]} 8. O-O {[%clk 0:03:06.8]}
8... e5 {[%clk 0:03:03.9]} 9. f4 {[%clk 0:03:06.5]} 9... Qe7 {[%clk 0:03:05.5]}
10. f5 {[%clk 0:03:07.5]} 10... O-O {[%clk 0:03:05.6]} 11. fxg6 {[%clk
0:03:06.1]} 11... fxg6 {[%clk 0:03:05.2]} 12. Qb3+ {[%clk 0:03:07.6]} 12... Kh7
{[%clk 0:03:00.9]} 13. Rxf8 {[%clk 0:03:09]} 13... Qxf8 {[%clk 0:02:58.6]} 14.
Nd2 {[%clk 0:03:10.9]} 14... Nc6 {[%clk 0:02:35.4]} 15. Rf1 {[%clk 0:03:08.3]}
15... Qe8 {[%clk 0:02:36.4]} 16. Nf3 {[%clk 0:02:39.3]} 16... Rb8 {[%clk
0:02:18.9]} 17. d5 {[%clk 0:02:16.9]} 17... Ne7 {[%clk 0:02:02.5]} 18. Bb5
{[%clk 0:02:15.1]} 18... c6 {[%clk 0:01:51.5]} 19. Bd3 {[%clk 0:01:57.5]} 19...
cxd5 {[%clk 0:01:45.8]} 20. exd5 {[%clk 0:01:57.6]} 20... Bf5 {[%clk 0:01:46.7]}
21. Qc2 {[%clk 0:01:51.9]} 21... Qb5 {[%clk 0:01:28.1]} 22. Bxf5 {[%clk
0:01:41.9]} 22... Nxf5 {[%clk 0:01:27]} 23. c4 {[%clk 0:01:43.1]} 23... Qc5+
{[%clk 0:01:26.5]} 24. Rf2 {[%clk 0:01:40.1]} 24... Rc8 {[%clk 0:01:26.4]} 25.
b3 {[%clk 0:01:40.4]} 25... Qxd5 {[%clk 0:01:25]} 26. Nc3 {[%clk 0:01:38.4]}
26... Qe6 {[%clk 0:01:24]} 27. Qd3 {[%clk 0:01:34.1]} 27... a6 {[%clk
0:01:19.6]} 28. h3 {[%clk 0:01:29.3]} 28... b5 {[%clk 0:01:20.5]} 29. Nd2 {[%clk
0:01:22.9]} 29... bxc4 {[%clk 0:01:14.8]} 30. bxc4 {[%clk 0:01:24.7]} 30... Nd4
{[%clk 0:01:01.5]} 31. Nd5 {[%clk 0:01:17.1]} 31... Rf8 {[%clk 0:00:55.3]} 32.
Rxf8 {[%clk 0:01:16.3]} 32... Bxf8 {[%clk 0:00:56.3]} 33. Ne4 {[%clk 0:01:17.5]}
33... Bg7 {[%clk 0:00:56.2]} 34. h4 {[%clk 0:01:17.4]} 34... Qf5 {[%clk
0:00:55.7]} 35. h5 {[%clk 0:01:16.3]} 35... gxh5 {[%clk 0:00:51.3]} 36. Nef6+
{[%clk 0:01:15.2]} 36... Bxf6 {[%clk 0:00:51]} 37. Nxf6+ {[%clk 0:01:16]} 37...
Kg6 {[%clk 0:00:52.1]} 38. Qxf5+ {[%clk 0:01:15.5]} 38... Nxf5 {[%clk
0:00:52.2]} 39. Nd7 {[%clk 0:01:16.3]} 39... Ne3 {[%clk 0:00:51.4]} 40. c5
{[%clk 0:01:17.1]} 40... dxc5 {[%clk 0:00:51.3]} 41. Nxc5 {[%clk 0:01:17.7]}
41... a5 {[%clk 0:00:52.8]} 42. a4 {[%clk 0:01:08.9]} 42... Kf5 {[%clk
0:00:50.9]} 43. Kf2 {[%clk 0:01:08.4]} 43... Nc4 {[%clk 0:00:51.9]} 44. Kf3
{[%clk 0:01:09.3]} 44... h4 {[%clk 0:00:52]} 45. Kf2 {[%clk 0:01:04.5]} 45... e4
{[%clk 0:00:51.7]} 46. Nb3 {[%clk 0:00:51.5]} 46... Kf4 {[%clk 0:00:52]} 47. Nd4
{[%clk 0:00:49.8]} 47... e3+ {[%clk 0:00:53.1]} 48. Ke2 {[%clk 0:00:50.9]} 48...
Kg3 {[%clk 0:00:54.3]} 49. Nf5+ {[%clk 0:00:50.9]} 49... Kxg2 {[%clk 0:00:55]}
50. Nxh4+ {[%clk 0:00:52.4]} 50... Kh3 {[%clk 0:00:55.7]} 51. Nf5 {[%clk
0:00:53.4]} 51... h5 {[%clk 0:00:56.9]} 52. Kf3 {[%clk 0:00:52.6]} 52... h4
{[%clk 0:00:58]} 53. Ke2 {[%clk 0:00:45.1]} 53... Kg4 {[%clk 0:00:57.6]} 54.
Nh6+ {[%clk 0:00:45.3]} 54... Kf4 {[%clk 0:00:57.7]} 0-1

[Event "*** Titled Tuesday Blitz"]
[Site "Chess.com"]
[Date "2019.04.02"]
[Round "1"]
[White "Caterpiller35"]
[Black "chessking2151"]
[Result "0-1"]
[WhiteElo "2228"]
[BlackElo "2569"]
[TimeControl "180+2"]
[EndTime "14:08:55 PDT"]
[Termination "chessking2151 won by resignation"]

1. d4 {[%clk 0:02:53.6]} 1... Nf6 {[%clk 0:02:57]} 2. Bg5 {[%clk 0:02:48.8]}
2... Ne4 {[%clk 0:02:56.5]} 3. Bf4 {[%clk 0:02:44.1]} 3... d5 {[%clk 0:02:50.9]}
4. e3 {[%clk 0:02:42.8]} 4... c5 {[%clk 0:02:50.9]} 5. Bd3 {[%clk 0:02:32.6]}
5... Nf6 {[%clk 0:02:50.9]} 6. Nf3 {[%clk 0:02:29.6]} 6... Nc6 {[%clk
0:02:47.5]} 7. O-O {[%clk 0:02:26.4]} 7... Bg4 {[%clk 0:02:42.8]} 8. Nbd2 {[%clk
0:02:26.1]} 8... cxd4 {[%clk 0:02:28.8]} 9. exd4 {[%clk 0:02:19.3]} 9... Nxd4
{[%clk 0:01:33.4]} 10. c3 {[%clk 0:02:14.5]} 10... Nc6 {[%clk 0:01:29.3]} 11.
Re1 {[%clk 0:02:14.3]} 11... e6 {[%clk 0:01:15.4]} 12. Qb3 {[%clk 0:02:13]}
12... Qb6 {[%clk 0:01:11.7]} 13. Qxb6 {[%clk 0:02:07.6]} 13... axb6 {[%clk
0:01:12.5]} 14. Ne5 {[%clk 0:02:01.3]} 14... Nxe5 {[%clk 0:01:12.5]} 15. Bxe5
{[%clk 0:02:01.6]} 15... Bc5 {[%clk 0:01:08.1]} 16. b4 {[%clk 0:01:55.6]} 16...
Be7 {[%clk 0:01:07.2]} 17. Bc7 {[%clk 0:01:49.9]} 17... Nd7 {[%clk 0:00:57.1]}
18. Bb5 {[%clk 0:01:50]} 18... Bd8 {[%clk 0:00:43.1]} 19. Bd6 {[%clk 0:01:47.2]}
19... Rc8 {[%clk 0:00:42.7]} 20. c4 {[%clk 0:01:47.7]} 20... d4 {[%clk
0:00:33.6]} 21. Nb3 {[%clk 0:01:28]} 21... Be7 {[%clk 0:00:29.5]} 22. Bxe7
{[%clk 0:01:24]} 22... Kxe7 {[%clk 0:00:31.4]} 23. Nxd4 {[%clk 0:01:25.3]} 23...
Rhd8 {[%clk 0:00:33]} 24. h3 {[%clk 0:01:22.4]} 24... Nf6 {[%clk 0:00:30.4]} 25.
Nb3 {[%clk 0:01:01.2]} 25... Bf5 {[%clk 0:00:30.9]} 26. Rad1 {[%clk 0:00:56.8]}
26... Bd3 {[%clk 0:00:15]} 27. Rc1 {[%clk 0:00:43.2]} 27... Ra8 {[%clk
0:00:12.8]} 28. a4 {[%clk 0:00:43.8]} 28... Rac8 {[%clk 0:00:11.4]} 29. a5
{[%clk 0:00:44.7]} 29... bxa5 {[%clk 0:00:12.8]} 30. Nxa5 {[%clk 0:00:46.1]}
30... Rc7 {[%clk 0:00:14.4]} 31. Re3 {[%clk 0:00:43.8]} 31... Bg6 {[%clk
0:00:15.2]} 32. c5 {[%clk 0:00:43.3]} 32... Nd5 {[%clk 0:00:15.9]} 33. Rb3
{[%clk 0:00:40.1]} 33... Ra8 {[%clk 0:00:17]} 34. Nxb7 {[%clk 0:00:28.5]} 34...
Rb8 {[%clk 0:00:08.3]} 35. c6 {[%clk 0:00:27.4]} 35... Be4 {[%clk 0:00:06.9]}
36. Rc4 {[%clk 0:00:18.5]} 36... Bg6 {[%clk 0:00:05.9]} 37. Ba6 {[%clk
0:00:14.9]} 37... Nb6 {[%clk 0:00:06.7]} 38. Rd4 {[%clk 0:00:14.2]} 38... Rxc6
{[%clk 0:00:06.8]} 39. b5 {[%clk 0:00:15.4]} 39... Rc7 {[%clk 0:00:07.6]} 40.
Na5 {[%clk 0:00:15.5]} 40... Nd5 {[%clk 0:00:08.7]} 41. Nc6+ {[%clk 0:00:16.4]}
41... Rxc6 {[%clk 0:00:09.9]} 42. bxc6 {[%clk 0:00:16.7]} 42... Rxb3 {[%clk
0:00:11.6]} 43. Rxd5 {[%clk 0:00:16.9]} 43... exd5 {[%clk 0:00:13.5]} 44. c7
{[%clk 0:00:17.9]} 44... Bf5 {[%clk 0:00:15.1]} 45. g4 {[%clk 0:00:18.1]} 45...
Be6 {[%clk 0:00:14.7]} 46. f4 {[%clk 0:00:17.1]} 46... Rc3 {[%clk 0:00:15.9]}
0-1

[Event "*** Titled Tuesday Blitz"]
[Site "Chess.com"]
[Date "2019.04.02"]
[Round "1"]
[White "nurgyulsalimova"]
[Black "Bigfish1995"]
[Result "0-1"]
[WhiteElo "2490"]
[BlackElo "2914"]
[TimeControl "180+2"]
[EndTime "14:08:58 PDT"]
[Termination "Bigfish1995 won by resignation"]

1. c4 {[%clk 0:03:00.8]} 1... e6 {[%clk 0:02:56.7]} 2. Nc3 {[%clk 0:02:59.7]}
2... d5 {[%clk 0:02:57.4]} 3. cxd5 {[%clk 0:02:55.6]} 3... exd5 {[%clk
0:02:57.9]} 4. d4 {[%clk 0:02:57.5]} 4... c6 {[%clk 0:02:57.8]} 5. Nf3 {[%clk
0:02:58.8]} 5... Bf5 {[%clk 0:02:54.6]} 6. Bf4 {[%clk 0:02:58.9]} 6... Nd7
{[%clk 0:02:51.6]} 7. e3 {[%clk 0:02:59.9]} 7... Qb6 {[%clk 0:02:52.6]} 8. Qc1
{[%clk 0:02:54.7]} 8... Ngf6 {[%clk 0:02:51.2]} 9. Be2 {[%clk 0:02:55.6]} 9...
h6 {[%clk 0:02:47.3]} 10. O-O {[%clk 0:02:56.1]} 10... Be7 {[%clk 0:02:48.3]}
11. h3 {[%clk 0:02:45.6]} 11... O-O {[%clk 0:02:48.8]} 12. a3 {[%clk 0:02:22]}
12... a5 {[%clk 0:02:46.1]} 13. Na4 {[%clk 0:02:06.2]} 13... Qa7 {[%clk
0:02:45.4]} 14. Ne5 {[%clk 0:02:02.5]} 14... Nxe5 {[%clk 0:02:42.7]} 15. Bxe5
{[%clk 0:02:01.9]} 15... Nd7 {[%clk 0:02:41.7]} 16. Bg3 {[%clk 0:01:58.9]} 16...
b5 {[%clk 0:02:30.4]} 17. Nc3 {[%clk 0:01:59.2]} 17... Nb6 {[%clk 0:02:31]} 18.
Nb1 {[%clk 0:01:21.5]} 18... Rfc8 {[%clk 0:02:21.9]} 19. Nd2 {[%clk 0:01:22.3]}
19... c5 {[%clk 0:02:19.8]} 20. dxc5 {[%clk 0:01:23]} 20... Rxc5 {[%clk
0:02:19]} 21. Qd1 {[%clk 0:01:21.9]} 21... Bf6 {[%clk 0:02:09.9]} 22. b4 {[%clk
0:00:50.4]} 22... Rcc8 {[%clk 0:01:52.6]} 23. bxa5 {[%clk 0:00:40.9]} 23... Na4
{[%clk 0:01:39]} 24. Rc1 {[%clk 0:00:33.1]} 24... Nc3 {[%clk 0:01:36.3]} 25. Qe1
{[%clk 0:00:34.1]} 25... Qxa5 {[%clk 0:01:32]} 26. Bd6 {[%clk 0:00:26]} 26...
Qa4 {[%clk 0:01:01.1]} 27. Bb4 {[%clk 0:00:23.8]} 27... Bc2 {[%clk 0:00:55.4]}
28. Nf3 {[%clk 0:00:14.7]} 28... Na2 {[%clk 0:00:52.2]} 29. Rxc2 {[%clk
0:00:10.3]} 29... Qxc2 {[%clk 0:00:48.5]} 30. Bxb5 {[%clk 0:00:11.2]} 30... Bc3
{[%clk 0:00:45.2]} 31. Bxc3 {[%clk 0:00:09.9]} 31... Nxc3 {[%clk 0:00:45.4]} 32.
Nd4 {[%clk 0:00:10.9]} 32... Qb2 {[%clk 0:00:45.5]} 33. Bd7 {[%clk 0:00:11.4]}
33... Rc7 {[%clk 0:00:44.2]} 34. Bg4 {[%clk 0:00:11.3]} 34... Rxa3 {[%clk
0:00:43.7]} 35. Nf5 {[%clk 0:00:08.2]} 35... h5 {[%clk 0:00:40.7]} 36. Bf3
{[%clk 0:00:07.9]} 36... g6 {[%clk 0:00:41.6]} 37. Nd4 {[%clk 0:00:08.5]} 37...
Kg7 {[%clk 0:00:39.9]} 38. Kh1 {[%clk 0:00:04.7]} 38... h4 {[%clk 0:00:39.9]}
39. Kg1 {[%clk 0:00:05.7]} 39... Rca7 {[%clk 0:00:35.1]} 40. Nc6 {[%clk
0:00:03.5]} 40... R7a6 {[%clk 0:00:31]} 41. Ne5 {[%clk 0:00:02.3]} 41... Ra1
{[%clk 0:00:31.1]} 42. Nd3 {[%clk 0:00:02.7]} 42... Rxe1 {[%clk 0:00:23.4]} 43.
Nxb2 {[%clk 0:00:03.7]} 43... Rxf1+ {[%clk 0:00:24.7]} 44. Kxf1 {[%clk
0:00:05.3]} 44... Ra1+ {[%clk 0:00:25.5]} 0-1

[Event "*** Titled Tuesday Blitz"]
[Site "Chess.com"]
[Date "2019.04.02"]
[Round "1"]
[White "Schachmalanders"]
[Black "Kimster98"]
[Result "0-1"]
[WhiteElo "2297"]
[BlackElo "2615"]
[TimeControl "180+2"]
[EndTime "14:09:00 PDT"]
[Termination "Kimster98 won by checkmate"]

1. e4 {[%clk 0:02:58.9]} 1... d6 {[%clk 0:03:01]} 2. d4 {[%clk 0:02:58.6]} 2...
Nf6 {[%clk 0:03:02.3]} 3. Nc3 {[%clk 0:02:59.5]} 3... c6 {[%clk 0:03:03.8]} 4.
h3 {[%clk 0:02:58.3]} 4... Nbd7 {[%clk 0:03:03.5]} 5. g4 {[%clk 0:02:58.6]} 5...
g6 {[%clk 0:03:02.4]} 6. g5 {[%clk 0:02:57.6]} 6... Nh5 {[%clk 0:03:03.7]} 7.
Be2 {[%clk 0:02:58.5]} 7... Ng7 {[%clk 0:03:04.3]} 8. Be3 {[%clk 0:02:57.4]}
8... e5 {[%clk 0:03:05.6]} 9. Nf3 {[%clk 0:02:57.5]} 9... Be7 {[%clk 0:03:00.5]}
10. Qd2 {[%clk 0:02:58.6]} 10... a6 {[%clk 0:03:00.5]} 11. O-O-O {[%clk
0:02:59.2]} 11... b5 {[%clk 0:03:01.9]} 12. h4 {[%clk 0:02:46.5]} 12... Bb7
{[%clk 0:02:52.3]} 13. Nh2 {[%clk 0:02:40.5]} 13... b4 {[%clk 0:02:42.7]} 14.
Na4 {[%clk 0:02:35.7]} 14... c5 {[%clk 0:02:42.6]} 15. dxc5 {[%clk 0:02:26.6]}
15... Nxc5 {[%clk 0:02:36.6]} 16. Qxb4 {[%clk 0:02:15.7]} 16... Bxe4 {[%clk
0:02:29.3]} 17. f3 {[%clk 0:01:42.1]} 17... Bf5 {[%clk 0:02:23.5]} 18. Bxc5
{[%clk 0:01:34]} 18... Qc7 {[%clk 0:02:24.7]} 19. Bd3 {[%clk 0:01:10.4]} 19...
dxc5 {[%clk 0:02:22.1]} 20. Qb6 {[%clk 0:01:04]} 20... Qxb6 {[%clk 0:02:22.2]}
21. Nxb6 {[%clk 0:01:05.9]} 21... Rb8 {[%clk 0:02:22.2]} 22. Nd5 {[%clk
0:01:07]} 22... Bd8 {[%clk 0:02:16.5]} 23. Ng4 {[%clk 0:00:59.1]} 23... Bxg4
{[%clk 0:02:13]} 24. fxg4 {[%clk 0:00:59.9]} 24... O-O {[%clk 0:02:13]} 25. Bc4
{[%clk 0:00:52.9]} 25... Ne6 {[%clk 0:02:06.1]} 26. Rhe1 {[%clk 0:00:49.3]}
26... Nd4 {[%clk 0:02:02.2]} 27. Rxe5 {[%clk 0:00:45.7]} 27... Nf3 {[%clk
0:02:01.7]} 28. Re3 {[%clk 0:00:28.6]} 28... Nxh4 {[%clk 0:02:00.6]} 29. Nf6+
{[%clk 0:00:29.6]} 29... Bxf6 {[%clk 0:02:00.3]} 30. gxf6 {[%clk 0:00:31.5]}
30... h6 {[%clk 0:01:53.9]} 31. Rg1 {[%clk 0:00:28.4]} 31... Rb6 {[%clk
0:01:50.1]} 32. g5 {[%clk 0:00:28.1]} 32... hxg5 {[%clk 0:01:50.5]} 33. Rxg5
{[%clk 0:00:26.5]} 33... Rxf6 {[%clk 0:01:51.8]} 34. Rxc5 {[%clk 0:00:27.2]}
34... Kg7 {[%clk 0:01:49.8]} 35. Re7 {[%clk 0:00:26.1]} 35... Nf5 {[%clk
0:01:43.7]} 36. Ra7 {[%clk 0:00:23.8]} 36... Ne3 {[%clk 0:01:27.6]} 37. Bxa6
{[%clk 0:00:23.6]} 37... Rf2 {[%clk 0:01:26.4]} 38. b3 {[%clk 0:00:23.4]} 38...
Rh8 {[%clk 0:01:22.4]} 39. Bd3 {[%clk 0:00:22.9]} 39... Rh1+ {[%clk 0:01:23.4]}
40. Kb2 {[%clk 0:00:23.9]} 40... Nd1+ {[%clk 0:01:14.7]} 41. Ka3 {[%clk
0:00:23.6]} 41... Ne3 {[%clk 0:01:11.2]} 42. b4 {[%clk 0:00:23.7]} 42... Rb1
{[%clk 0:01:01.4]} 43. Rc6 {[%clk 0:00:19.6]} 43... Kh6 {[%clk 0:00:59.4]} 44.
Rcc7 {[%clk 0:00:20.1]} 44... f5 {[%clk 0:01:00.5]} 45. Rh7+ {[%clk 0:00:19.3]}
45... Kg5 {[%clk 0:01:01.8]} 46. Rhc7 {[%clk 0:00:20.2]} 46... Ng4 {[%clk
0:01:00.7]} 47. Ka4 {[%clk 0:00:20.5]} 47... Ne5 {[%clk 0:00:59.9]} 48. b5
{[%clk 0:00:21.6]} 48... Nxd3 {[%clk 0:00:59.6]} 49. b6 {[%clk 0:00:21.7]} 49...
Rxb6 {[%clk 0:00:57.5]} 50. Rg7 {[%clk 0:00:21.7]} 50... Rxc2 {[%clk 0:00:56.8]}
51. Ka5 {[%clk 0:00:22.5]} 51... Rbb2 {[%clk 0:00:52.5]} 52. a4 {[%clk
0:00:23.6]} 52... Rc5+ {[%clk 0:00:52.8]} 53. Ka6 {[%clk 0:00:24.7]} 53... Rc6+
{[%clk 0:00:54.1]} 54. Ka5 {[%clk 0:00:25.6]} 54... Rc5+ {[%clk 0:00:46.4]} 55.
Ka6 {[%clk 0:00:26.5]} 55... Rc6+ {[%clk 0:00:48]} 56. Ka5 {[%clk 0:00:27.7]}
56... Ne5 {[%clk 0:00:49.6]} 57. Rab7 {[%clk 0:00:27.1]} 57... Nc4# {[%clk
0:00:49.4]} 0-1

[Event "*** Titled Tuesday Blitz"]
[Site "Chess.com"]
[Date "2019.04.02"]
[Round "1"]
[White "DrMelekess"]
[Black "ChainsOfFantasia"]
[Result "0-1"]
[WhiteElo "2713"]
[BlackElo "2440"]
[TimeControl "180+2"]
[EndTime "14:09:12 PDT"]
[Termination "ChainsOfFantasia won by resignation"]

1. d4 {[%clk 0:02:58.5]} 1... Nf6 {[%clk 0:02:57.4]} 2. Nf3 {[%clk 0:02:57.8]}
2... e6 {[%clk 0:02:59.3]} 3. c4 {[%clk 0:02:57.8]} 3... d5 {[%clk 0:03:01.2]}
4. e3 {[%clk 0:02:53.4]} 4... Be7 {[%clk 0:03:01.3]} 5. b3 {[%clk 0:02:49.3]}
5... O-O {[%clk 0:03:02.3]} 6. Be2 {[%clk 0:02:48.8]} 6... b6 {[%clk 0:03:03.2]}
7. O-O {[%clk 0:02:48.9]} 7... Bb7 {[%clk 0:03:03.9]} 8. Bb2 {[%clk 0:02:49.8]}
8... dxc4 {[%clk 0:03:03.3]} 9. bxc4 {[%clk 0:02:37.2]} 9... c5 {[%clk
0:03:05.2]} 10. Nbd2 {[%clk 0:02:38]} 10... cxd4 {[%clk 0:03:04.4]} 11. exd4
{[%clk 0:02:39.9]} 11... Nc6 {[%clk 0:03:04]} 12. Rc1 {[%clk 0:02:35.6]} 12...
Rc8 {[%clk 0:03:04.2]} 13. Nb3 {[%clk 0:02:28.8]} 13... Qc7 {[%clk 0:02:35.7]}
14. Qd2 {[%clk 0:02:12.5]} 14... Rfd8 {[%clk 0:02:34]} 15. Rfd1 {[%clk
0:02:13.2]} 15... Qb8 {[%clk 0:02:25.2]} 16. h3 {[%clk 0:02:01.6]} 16... h6
{[%clk 0:02:24.8]} 17. Qe3 {[%clk 0:02:01.4]} 17... Re8 {[%clk 0:02:15.3]} 18.
Bd3 {[%clk 0:01:45.6]} 18... Nb4 {[%clk 0:02:10.2]} 19. Bb1 {[%clk 0:01:46.2]}
19... Qa8 {[%clk 0:01:57.5]} 20. Nbd2 {[%clk 0:01:18.1]} 20... b5 {[%clk
0:01:44]} 21. a3 {[%clk 0:01:14.4]} 21... Na6 {[%clk 0:01:28.3]} 22. cxb5 {[%clk
0:01:14.9]} 22... Nc7 {[%clk 0:01:29.8]} 23. Qb3 {[%clk 0:00:49.4]} 23... Bd5
{[%clk 0:01:26.4]} 24. Qd3 {[%clk 0:00:49.2]} 24... Qb7 {[%clk 0:01:21.7]} 25.
a4 {[%clk 0:00:49.5]} 25... a6 {[%clk 0:01:22]} 26. Ne1 {[%clk 0:00:09]} 26...
axb5 {[%clk 0:01:20.2]} 27. axb5 {[%clk 0:00:10.2]} 27... Nxb5 {[%clk
0:01:15.5]} 28. Rxc8 {[%clk 0:00:11.1]} 28... Rxc8 {[%clk 0:01:15.7]} 29. Rc1
{[%clk 0:00:12.6]} 29... Nd6 {[%clk 0:01:09.7]} 30. Rxc8+ {[%clk 0:00:12.4]}
30... Qxc8 {[%clk 0:01:11.6]} 31. Ba3 {[%clk 0:00:11.9]} 31... Nf5 {[%clk
0:01:06.6]} 32. Bxe7 {[%clk 0:00:09.5]} 32... Nxe7 {[%clk 0:01:08.5]} 33. Bc2
{[%clk 0:00:09.3]} 33... Nf5 {[%clk 0:01:07.4]} 34. Bb3 {[%clk 0:00:09]} 34...
Qb7 {[%clk 0:01:06.7]} 35. Bxd5 {[%clk 0:00:09.2]} 35... Qxd5 {[%clk 0:01:08.6]}
36. Nef3 {[%clk 0:00:10.5]} 36... Ne8 {[%clk 0:00:57.7]} 37. Qc3 {[%clk
0:00:08.6]} 37... Ned6 {[%clk 0:00:58.2]} 38. g3 {[%clk 0:00:07.5]} 38... Nb5
{[%clk 0:00:55]} 39. Qc8+ {[%clk 0:00:08.5]} 39... Kh7 {[%clk 0:00:56.2]} 40.
Qe8 {[%clk 0:00:09.6]} 40... Nbxd4 {[%clk 0:00:51.2]} 41. Nxd4 {[%clk
0:00:10.7]} 41... Nxd4 {[%clk 0:00:41.6]} 42. Kh2 {[%clk 0:00:02.9]} 42... Qf5
{[%clk 0:00:37.7]} 43. Kg2 {[%clk 0:00:03.2]} 43... Qd3 {[%clk 0:00:37.1]} 44.
Nf1 {[%clk 0:00:02.4]} 44... Qf3+ {[%clk 0:00:37.2]} 45. Kh2 {[%clk 0:00:03.6]}
45... Qxf2+ {[%clk 0:00:36.8]} 0-1